fUSD/lending_fUSD_20250530
["ID","MTS","AMOUNT","RATE_DAILY","PERIOD"]
[363226717,1748629853662,-1400.0,0.00026417,2]
[363226718,1748629853671,-6073.90825069,0.00026417,15]
[363226719,1748629853681,-500.0,0.00026431,2]
[363226720,1748629853692,-500.0,0.00026438,2]
[363226721,1748629853702,-500.0,0.00026453,2]
[363226722,1748629853711,-500.0,0.00026457,2]
[363226723,1748629853721,-796.01828311,0.00026461,2]
[363226724,1748629853730,-500.84422037,0.00026462,2]
[363226725,1748629853740,-1400.0,0.00026464,2]
[363226726,1748629853750,-3900.0,0.0002647,2]
[363226727,1748629853759,-306.26495963,0.00026486,2]
[363226728,1748629853769,-1400.0,0.00026489,2]
[363226729,1748629853778,-46371.26759469,0.000265,2]
[363226730,1748629853787,-151.0,0.000265,7]
[363226731,1748629853797,-219.137766,0.000265,7]
[363226732,1748629853806,-151.0,0.000265,7]
[363226733,1748629853816,-151.0,0.000265,7]
[363226734,1748629853826,-151.0,0.000265,7]
[363226735,1748629853836,-151.0,0.000265,7]
[363226736,1748629853846,-288.039804,0.000265,7]
[363226737,1748629853856,-151.0,0.000265,7]
[363226738,1748629853865,-203.739619,0.000265,7]
[363226739,1748629853875,-151.0,0.000265,7]
[363226740,1748629853885,-6900.0,0.00026514,2]
[363226741,1748629853894,-6900.0,0.00026526,2]
[363226742,1748629853904,-1700.0,0.00026568,2]
[363226743,1748629853914,-600.0,0.00026592,2]
[363226744,1748629853923,-1400.0,0.00026598,2]
[363226745,1748629853933,-500.0,0.00026611,2]
[363226746,1748629853943,-500.0,0.00026617,2]
[363226747,1748629853952,-1700.0,0.00026618,2]
[363226748,1748629853961,-771.0,0.00026627,2]
[363226749,1748629853971,-500.0,0.00026627,2]
[363226750,1748629853981,-500.0,0.00026627,2]
[363226751,1748629853991,-500.0,0.00026627,2]
[363226752,1748629854001,-500.0,0.00026627,2]
[363226753,1748629854010,-500.0,0.00026627,2]
[363226754,1748629854020,-500.0,0.00026627,2]
[363226755,1748629854029,-500.0,0.00026627,2]
[363226756,1748629854039,-3900.0,0.00026628,2]
[363226757,1748629854048,-500.0,0.00026632,2]
[363226758,1748629854058,-500.0,0.00026639,2]
[363226759,1748629854068,-500.0,0.00026651,2]
[363226760,1748629854078,-709.84691532,0.00026652,2]
[363226761,1748629854087,-982.74312343,0.00026653,2]
[363226762,1748629854097,-6900.0,0.00026662,2]
[363226763,1748629854107,-500.0,0.00026663,2]
[363226764,1748629854116,-296.62,0.00026676,2]
[363226765,1748629854126,-600.0,0.00026679,2]
[363226766,1748629854136,-600.0,0.00026684,2]
[363226767,1748629854145,-500.0,0.00026692,2]
[363226768,1748629854155,-500.0,0.00026708,2]
[363226769,1748629854164,-2000.0,0.00026715,2]
[363226770,1748629854173,-2000.0,0.00026715,2]
[363226771,1748629854183,-500.0,0.00026717,2]
[363226772,1748629854192,-500.0,0.00026717,2]
[363226773,1748629854202,-3900.0,0.00026721,2]
[363226774,1748629854212,-1700.0,0.00026728,2]
[363226775,1748629854221,-600.0,0.00026739,2]
[363226776,1748629854231,-3900.0,0.00026757,2]
[363226777,1748629854240,-700.0,0.0002677,2]
[363226778,1748629854249,-400.0,0.0002677,2]
[363226779,1748629854258,-168.10584233,0.00026776,2]
[363226780,1748629854268,-1700.0,0.00026785,2]
[363226781,1748629854277,-3900.0,0.00026795,2]
[363226782,1748629854286,-209.2,0.000268,2]
[363226783,1748629854296,-387.0,0.000268,2]
[363226784,1748629854305,-209.2,0.000268,2]
[363226785,1748629854315,-151.0,0.000268,7]
[363226786,1748629854324,-151.0,0.000268,7]
[363226787,1748629854334,-151.0,0.000268,7]
[363226788,1748629854344,-151.0,0.000268,7]
[363226789,1748629854354,-151.0,0.000268,7]
[363226790,1748629854363,-151.0,0.000268,7]
[363226791,1748629854372,-4965.365986,0.000268,7]
[363226792,1748629854381,-4965.365986,0.000268,7]
[363226793,1748629854391,-151.0,0.000268,7]
[363226794,1748629854400,-261326.35,0.000268,7]
[363226795,1748629854410,-174.61919141,0.00026809,2]
[363226796,1748629854420,-239.84119403,0.00026809,2]
[363226797,1748629854430,-773.2413689,0.00026809,2]
[363226798,1748629854439,-1199.20597015,0.00026811,2]
[363226799,1748629854450,-500.0,0.00026811,2]
[363226800,1748629854460,-208.0,0.00026849,2]
[363226801,1748629854469,-208.0,0.00026849,2]
[363226802,1748629854479,-208.0,0.00026849,2]
[363226803,1748629854488,-208.0,0.00026849,2]
[363226804,1748629854498,-208.0,0.00026849,2]
[363226805,1748629854507,-208.0,0.00026849,2]
[363226806,1748629854517,-208.0,0.00026849,2]
[363226807,1748629854527,-208.0,0.00026849,2]
[363226808,1748629854537,-208.0,0.00026849,2]
[363226809,1748629854548,-208.0,0.00026849,2]
[363226810,1748629854560,-208.0,0.00026849,2]
[363226811,1748629854569,-208.0,0.00026849,2]
[363226812,1748629854578,-210.0,0.00026849,2]
[363226813,1748629854589,-211.0,0.00026849,2]
[363226814,1748629854598,-203.0,0.00026849,2]
[363226815,1748629854608,-203.0,0.00026849,2]
[363226816,1748629854620,-203.0,0.00026849,2]
[363226817,1748629854644,-203.0,0.00026849,2]
[363226818,1748629854654,-203.0,0.00026849,2]
[363226819,1748629854663,-203.0,0.00026849,2]
[363226820,1748629854673,-203.0,0.00026849,2]
[363226821,1748629854682,-210.0,0.00026849,2]
[363226822,1748629854693,-210.0,0.00026849,2]
[363226823,1748629854703,-210.0,0.00026849,2]
[363226824,1748629854712,-214.0,0.00026849,2]
[363226825,1748629854722,-214.0,0.00026849,2]
[363226826,1748629854731,-214.0,0.00026849,2]
[363226827,1748629854741,-214.0,0.00026849,2]
[363226828,1748629854751,-214.0,0.00026849,2]
[363226829,1748629854760,-238.385818,0.00026849,7]
[363226830,1748629854769,-151.0,0.00026849,7]
[363226831,1748629854779,-150.0,0.00026849,2]
[363226832,1748629854789,-150.0,0.00026849,2]
[363226833,1748629854799,-593.93479267,0.00026849,2]
[363226834,1748629854808,-571.57720624,0.00026849,2]
[363226835,1748629854818,-150.0,0.00026849,2]
[363226836,1748629854827,-150.0,0.00026849,2]
[363226837,1748629854838,-150.0,0.00026849,2]
[363226838,1748629854848,-758.51593348,0.00026849,2]
[363226839,1748629854857,-4069.86521736,0.00026849,2]
[363226840,1748629854867,-632.25999931,0.00026849,2]
[363226841,1748629854876,-151.0,0.00026849,7]
[363226842,1748629854886,-240.0,0.00026849,2]
[363226843,1748629854896,-240.0,0.00026849,2]
[363226844,1748629854906,-240.0,0.00026849,2]
[363226845,1748629854916,-151.0,0.00026849,7]
[363226846,1748629854927,-151.0,0.00026849,7]
[363226847,1748629854937,-151.0,0.00026849,7]
[363226848,1748629854946,-151.0,0.00026849,7]
[363226849,1748629854956,-151.0,0.00026849,7]
[363226850,1748629854966,-177.831976,0.00026849,7]
[363226851,1748629854976,-322.129042,0.00026849,7]
[363226852,1748629854986,-322.129042,0.00026849,7]
[363226853,1748629854996,-163.304967,0.00026849,7]
[363226854,1748629855006,-163.304967,0.00026849,7]
[363226855,1748629855015,-151.0,0.00026849,7]
[363226856,1748629855024,-151.0,0.00026849,7]
[363226857,1748629855034,-151.0,0.00026849,7]
[363226858,1748629855043,-151.0,0.00026849,7]
[363226859,1748629855053,-197.577591,0.00026849,7]
[363226860,1748629855062,-197.577591,0.00026849,7]
[363226861,1748629855071,-151.0,0.00026849,7]
[363226862,1748629855081,-151.0,0.00026849,7]
[363226863,1748629855092,-200.630112,0.00026849,7]
[363226864,1748629855102,-151.0,0.00026849,7]
[363226865,1748629855112,-500.0,0.00026849,2]
[363226866,1748629855121,-242.120063,0.00026849,7]
[363226867,1748629855131,-242.120063,0.00026849,7]
[363226868,1748629855141,-151.0,0.00026849,7]
[363226869,1748629855151,-151.0,0.00026849,7]
[363226870,1748629855161,-196.145587,0.00026849,7]
[363226871,1748629855170,-83461.9187068,0.00026849,2]
[363226872,1748629855180,-154.0,0.00026849,2]
[363226873,1748629855190,-3900.0,0.00026852,2]
[363226874,1748629855200,-1700.0,0.00026862,2]
[363226875,1748629855210,-500.0,0.00026866,2]
[363226876,1748629855219,-151.0,0.00026867,7]
[363226877,1748629855228,-151.0,0.00026867,7]
[363226878,1748629855238,-151.0,0.00026867,7]
[363226879,1748629855247,-151.0,0.00026867,7]
[363226880,1748629855257,-151.0,0.00026867,7]
[363226881,1748629855266,-151.0,0.00026867,7]
[363226882,1748629855276,-151.0,0.00026867,7]
[363226883,1748629855285,-817.881421,0.00026867,7]
[363226884,1748629855296,-817.881421,0.00026867,7]
[363226885,1748629855305,-982.89626089,0.00026881,2]
[363226886,1748629855315,-1400.0,0.00026885,2]
[363226887,1748629855325,-500.0,0.00026886,2]
[363226888,1748629855335,-16237.11889352,0.00026889,2]
[363226889,1748629855346,-151.0,0.00026889,7]
[363226890,1748629855356,-151.0,0.00026889,7]
[363226891,1748629855366,-151.0,0.00026889,7]
[363226892,1748629855376,-151.756955,0.00026889,7]
[363226893,1748629855386,-151.0,0.00026889,7]
[363226894,1748629855397,-151.0,0.00026889,7]
[363226895,1748629855407,-151.0,0.00026889,7]
[363226896,1748629855417,-241.51136,0.00026889,7]
[363226897,1748629855427,-151.0,0.00026889,7]
[363226898,1748629855436,-151.0,0.00026889,7]
[363226899,1748629855454,-151.0,0.00026889,7]
[363226900,1748629855464,-151.0,0.00026889,7]
[363226901,1748629855473,-151.0,0.00026889,7]
[363226902,1748629855484,-154.460828,0.00026889,7]
[363226903,1748629855494,-1739.178541,0.00026889,7]
[363226904,1748629855503,-151.0,0.00026889,7]
[363226905,1748629855513,-1739.178541,0.00026889,7]
[363226906,1748629855523,-151.0,0.00026889,7]
[363226907,1748629855533,-6900.0,0.00026889,2]
[363226908,1748629855542,-500.0,0.000269,2]
[363226909,1748629855552,-151.0,0.00026918,7]
[363226910,1748629855562,-151.0,0.00026918,7]
[363226911,1748629855572,-151.0,0.00026918,7]
[363226912,1748629855582,-151.0,0.00026928,7]
[363226913,1748629855789,-300.063976,0.00026928,7]
[363226914,1748629855806,-6900.0,0.00026952,2]
[363226915,1748629855816,-600.0,0.00026955,2]
[363226916,1748629855826,-500.0,0.00026966,2]
[363226917,1748629855836,-644.41377661,0.00026967,2]
[363226918,1748629855848,-500.0,0.00026981,2]
[363226919,1748629855858,-1700.0,0.00026996,2]
[363226920,1748629855867,-1700.0,0.00026997,2]
[363226921,1748629855878,-8874.47268134,0.00027,10]
[363226922,1748629855887,-250.47505522,0.00027,2]
[363226923,1748629855897,-250.0,0.00027,2]
[363226924,1748629855907,-1002.882682,0.00027,2]
[363226925,1748629855917,-249.53928037,0.00027,2]
[363226926,1748629855927,-1647.53710217,0.00027,120]
[363226927,1748629855937,-1456.333248,0.00027,2]
[363226928,1748629855947,-5435.33580934,0.00027,2]
[363226929,1748629855957,-151.0,0.00027,7]
[363226930,1748629855967,-151.0,0.00027,7]
[363226931,1748629855976,-325.254327,0.00027,7]
[363226932,1748629855986,-325.254327,0.00027,7]
[363226933,1748629855996,-550.0,0.00027,2]
[363226934,1748629856006,-1400.0,0.00027001,2]
[363226935,1748629856016,-6900.0,0.00027009,2]
[363226936,1748629856025,-1400.0,0.00027035,2]
[363226937,1748629856036,-614.60909705,0.00027058,2]
[363226938,1748629856045,-3900.0,0.00027075,2]
[363226939,1748629856055,-1700.0,0.00027075,2]
[363226940,1748629856065,-170.48120149,0.000271,2]
[363226941,1748629856075,-500.0,0.00027122,2]
[363226942,1748629856085,-163.41321543,0.00027122,2]
[363226943,1748629856096,-155.355111,0.00027123,7]
[363226944,1748629856106,-3565.77,0.00027123,2]
[363226945,1748629856116,-300.7,0.00027123,2]
[363226946,1748629856125,-170.32,0.00027123,2]
[363226947,1748629856135,-170.36,0.00027123,2]
[363226948,1748629856145,-500.0,0.00027134,2]
[363226949,1748629856155,-6073.90825069,0.00027141,16]
[363226950,1748629856164,-3900.0,0.00027145,2]
[363226951,1748629856174,-6900.0,0.00027145,2]
[363226952,1748629856184,-500.0,0.00027159,2]
[363226953,1748629856194,-500.0,0.00027187,2]
[363226954,1748629856204,-151.0,0.00027193,7]
[363226955,1748629856213,-151.0,0.00027193,7]
[363226956,1748629856223,-249.12664,0.00027193,7]
[363226957,1748629856234,-151.0,0.00027193,7]
[363226958,1748629856244,-151.0,0.00027193,7]
[363226959,1748629856253,-984.26061,0.00027193,7]
[363226960,1748629856263,-984.26061,0.00027193,7]
[363226961,1748629856273,-151.0,0.00027193,7]
[363226962,1748629856282,-819.55575,0.00027193,7]
[363226963,1748629856291,-151.0,0.00027193,7]
[363226964,1748629856301,-202.841095,0.00027193,7]
[363226965,1748629856310,-202.841095,0.00027193,7]
[363226966,1748629856319,-151.0,0.00027193,7]
[363226967,1748629856328,-151.0,0.00027193,7]
[363226968,1748629856340,-151.0,0.00027193,7]
[363226969,1748629856350,-151.0,0.00027193,7]
[363226970,1748629856360,-949.451029,0.00027193,7]
[363226971,1748629856369,-949.451029,0.00027193,7]
[363226972,1748629856380,-27180.5081991,0.000272,7]
[363226973,1748629856391,-151.0,0.000272,7]
[363226974,1748629856400,-151.0,0.000272,7]
[363226975,1748629856410,-1400.0,0.00027232,2]
[363226976,1748629856420,-1000.0,0.0002724,2]
[363226977,1748629856429,-500.0,0.00027259,2]
[363226978,1748629856438,-6900.0,0.00027265,2]
[363226979,1748629856448,-500.0,0.00027272,2]
[363226980,1748629856457,-500.0,0.00027274,2]
[363226981,1748629856466,-548.05708981,0.00027287,2]
[363226982,1748629856476,-500.0,0.0002729,2]
[363226983,1748629856486,-500.0,0.00027291,2]
[363226984,1748629856495,-500.0,0.00027295,2]
[363226985,1748629856505,-767.0,0.000273,2]
[363226986,1748629856514,-3900.0,0.00027303,2]
[363226987,1748629856524,-500.0,0.00027311,2]
[363226988,1748629856534,-500.0,0.00027327,2]
[363226989,1748629856543,-151.0,0.0002734,7]
[363226990,1748629856554,-500.0,0.00027344,2]
[363226991,1748629856564,-504.68448209,0.00027355,2]
[363226992,1748629856574,-1700.0,0.00027357,2]
[363226993,1748629856583,-6900.0,0.00027363,2]
[363226994,1748629856596,-500.0,0.00027366,2]
[363226995,1748629856606,-509.441355,0.00027386,2]
[363226996,1748629856618,-212.0,0.00027386,7]
[363226997,1748629856628,-151.0,0.00027386,7]
[363226998,1748629856638,-1400.0,0.00027387,2]
[363226999,1748629856647,-600.0,0.00027387,2]
[363227000,1748629856658,-1700.0,0.00027388,2]
[363227001,1748629856667,-4228.269549,0.0002739,7]
[363227002,1748629856677,-213.94975453,0.0002739,2]
[363227003,1748629856686,-4004.86814048,0.0002739,2]
[363227004,1748629856698,-3473.91488453,0.0002739,2]
[363227005,1748629856708,-4522.65340206,0.0002739,2]
[363227006,1748629856717,-5421.8534007,0.0002739,10]
[363227007,1748629856731,-3047.16351564,0.0002739,120]
[363227008,1748629856740,-501.85511439,0.0002739,28]
[363227009,1748629856750,-500.0,0.00027395,2]
[363227010,1748629856759,-150.0,0.00027397,2]
[363227011,1748629856770,-150.0,0.00027397,2]
[363227012,1748629856779,-500.0,0.00027397,2]
[363227013,1748629856789,-155.0,0.00027397,5]
[363227014,1748629856798,-387.39194048,0.00027397,10]
[363227015,1748629856808,-5120.14,0.00027397,2]
[363227016,1748629856818,-5177.3,0.00027397,15]
[363227017,1748629856828,-920.75274957,0.00027397,2]
[363227018,1748629856838,-150.0,0.00027397,2]
[363227019,1748629856848,-501.6,0.00027397,2]
[363227020,1748629856857,-198.0,0.00027397,80]
[363227021,1748629856867,-300.0,0.00027397,2]
[363227022,1748629856876,-175.67,0.00027397,10]
[363227023,1748629856886,-173.0,0.00027397,2]
[363227024,1748629856895,-189.44325697,0.00027397,2]
[363227025,1748629856905,-159.5312049,0.00027397,5]
[363227026,1748629856915,-500.0,0.00027397,4]
[363227027,1748629856924,-6900.0,0.00027398,2]
[363227028,1748629856934,-3067.42714655,0.000274,20]
[363227029,1748629856943,-556.0,0.000274,2]
[363227030,1748629856953,-600.0,0.00027414,2]
[363227031,1748629856963,-500.0,0.00027424,2]
[363227032,1748629856972,-150.0,0.00027424,2]
[363227033,1748629856982,-298.40813994,0.00027424,2]
[363227034,1748629856992,-500.0,0.00027441,2]
[363227035,1748629857001,-251.93985122,0.00027452,2]
[363227036,1748629857011,-600.0,0.00027468,2]
[363227037,1748629857020,-3900.0,0.00027484,2]
[363227038,1748629857029,-204.46035747,0.000275,2]
[363227039,1748629857636,-172.0,0.00019999,2]
[363227040,1748629857645,-196.145587,0.00024,7]
[363227041,1748629857655,-206.32642822,0.00025531,2]
[363227042,1748629857667,-293.67357178,0.00025531,2]
[363227043,1748629857677,-327.35051993,0.000275,2]
[363227044,1748629857686,-194.71484738,0.000275,2]
[363227045,1748629857697,-564.05227072,0.000275,7]
[363227046,1748629857709,-2085.55,0.000275,7]
[363227047,1748629858528,-10121.5686002,0.000199,2]
[363227048,1748629858538,-493.88267938,0.000232,2]
[363227049,1748629858547,-196.145587,0.00024797,7]
[363227050,1748629858556,-196.145587,0.000249,7]
[363227051,1748629858566,-196.145587,0.0002493,7]
[363227052,1748629858575,-500.0,0.00025531,2]
[363227053,1748629858584,-500.0,0.00025531,2]
[363227054,1748629858594,-500.0,0.00025531,2]
[363227055,1748629858603,-500.0,0.00025531,2]
[363227056,1748629858614,-500.0,0.00025531,2]
[363227057,1748629858625,-500.0,0.00025531,2]
[363227058,1748629858634,-500.0,0.00025531,2]
[363227059,1748629858643,-500.0,0.00025531,2]
[363227060,1748629858652,-500.0,0.00025531,2]
[363227061,1748629858662,-196.145587,0.00025944,7]
[363227062,1748629858673,-196.145587,0.00026849,7]
[363227063,1748629858682,-6384.98772928,0.000275,7]
[363227064,1748629858692,-500.0,0.00027512,2]
[363227065,1748629858702,-500.0,0.00027513,2]
[363227066,1748629858711,-153.144144,0.00027535,7]
[363227067,1748629858720,-500.7,0.00027536,2]
[363227068,1748629858730,-184.03,0.00027539,2]
[363227069,1748629858739,-500.0,0.00027541,2]
[363227070,1748629858749,-1700.0,0.00027542,2]
[363227071,1748629858759,-3900.0,0.00027554,2]
[363227072,1748629858768,-600.0,0.00027559,2]
[363227073,1748629858777,-500.0,0.0002756,2]
[363227074,1748629858787,-500.0,0.00027563,2]
[363227075,1748629858795,-600.0,0.00027563,2]
[363227076,1748629858805,-500.0,0.00027577,2]
[363227077,1748629858814,-1700.0,0.00027578,2]
[363227078,1748629858823,-6900.0,0.000276,2]
[363227079,1748629858832,-500.0,0.00027612,2]
[363227080,1748629858841,-212.0,0.00027616,14]
[363227081,1748629858851,-151.0,0.00027616,14]
[363227082,1748629858860,-500.0,0.00027618,2]
[363227083,1748629858869,-1700.0,0.00027625,2]
[363227084,1748629858879,-500.0,0.00027634,2]
[363227085,1748629858888,-500.0,0.0002764,2]
[363227086,1748629858897,-500.0,0.0002764,2]
[363227087,1748629858906,-500.0,0.0002764,2]
[363227088,1748629858916,-500.0,0.0002764,2]
[363227089,1748629858925,-500.0,0.0002764,2]
[363227090,1748629858934,-500.0,0.0002764,2]
[363227091,1748629858943,-500.0,0.0002764,2]
[363227092,1748629858953,-500.0,0.0002764,2]
[363227093,1748629858962,-500.0,0.0002764,2]
[363227094,1748629858972,-500.0,0.0002764,2]
[363227095,1748629858981,-500.0,0.0002764,2]
[363227096,1748629858990,-500.0,0.0002764,2]
[363227097,1748629858999,-500.0,0.0002764,2]
[363227098,1748629859008,-500.0,0.0002764,2]
[363227099,1748629859017,-500.0,0.0002764,2]
[363227100,1748629859026,-511.0,0.0002764,2]
[363227101,1748629859035,-500.0,0.0002764,2]
[363227102,1748629859044,-500.0,0.0002764,2]
[363227103,1748629859053,-500.0,0.0002764,2]
[363227104,1748629859063,-500.0,0.0002764,2]
[363227105,1748629859072,-500.0,0.0002764,2]
[363227106,1748629859081,-500.0,0.0002764,2]
[363227107,1748629859090,-500.0,0.0002764,2]
[363227108,1748629859099,-500.0,0.0002764,2]
[363227109,1748629859108,-500.0,0.0002764,2]
[363227110,1748629859117,-500.0,0.0002764,2]
[363227111,1748629859126,-500.0,0.0002764,2]
[363227112,1748629859136,-500.0,0.0002764,2]
[363227113,1748629859145,-500.0,0.0002764,2]
[363227114,1748629859154,-500.0,0.0002764,2]
[363227115,1748629859163,-500.0,0.0002764,2]
[363227116,1748629859172,-500.0,0.0002764,2]
[363227117,1748629859183,-500.0,0.0002764,2]
[363227118,1748629859193,-500.0,0.0002764,2]
[363227119,1748629859202,-500.0,0.0002764,2]
[363227120,1748629859211,-500.0,0.0002764,2]
[363227121,1748629859221,-500.0,0.0002764,2]
[363227122,1748629859230,-500.0,0.0002764,2]
[363227123,1748629859239,-500.0,0.0002764,2]
[363227124,1748629859248,-500.0,0.0002764,2]
[363227125,1748629859257,-500.0,0.0002764,2]
[363227126,1748629859266,-500.0,0.0002764,2]
[363227127,1748629859275,-500.0,0.0002764,2]
[363227128,1748629859284,-500.0,0.0002764,2]
[363227129,1748629859293,-500.0,0.0002764,2]
[363227130,1748629859302,-500.0,0.0002764,2]
[363227131,1748629859311,-500.0,0.0002764,2]
[363227132,1748629859321,-500.0,0.0002764,2]
[363227133,1748629859330,-500.0,0.0002764,2]
[363227134,1748629859339,-500.0,0.0002764,2]
[363227135,1748629859348,-500.0,0.0002764,2]
[363227136,1748629859357,-500.0,0.0002764,2]
[363227137,1748629859367,-500.0,0.0002764,2]
[363227138,1748629859377,-500.0,0.0002764,2]
[363227139,1748629859386,-500.0,0.0002764,2]
[363227140,1748629859395,-500.0,0.0002764,2]
[363227141,1748629859405,-500.0,0.0002764,2]
[363227142,1748629859414,-500.0,0.0002764,2]
[363227143,1748629859423,-500.0,0.0002764,2]
[363227144,1748629859433,-500.0,0.0002764,2]
[363227145,1748629859442,-500.0,0.0002764,2]
[363227146,1748629859451,-500.0,0.0002764,2]
[363227147,1748629859461,-500.0,0.0002764,2]
[363227148,1748629859470,-500.0,0.0002764,2]
[363227149,1748629859479,-500.0,0.0002764,2]
[363227150,1748629859489,-500.0,0.0002764,2]
[363227151,1748629859498,-500.0,0.0002764,2]
[363227152,1748629859507,-500.0,0.0002764,2]
[363227153,1748629859516,-500.0,0.0002764,2]
[363227154,1748629859525,-500.0,0.0002764,2]
[363227155,1748629859534,-500.0,0.0002764,2]
[363227156,1748629859544,-500.0,0.0002764,2]
[363227157,1748629859553,-500.0,0.0002764,2]
[363227158,1748629859562,-500.0,0.0002764,2]
[363227159,1748629859571,-500.0,0.0002764,2]
[363227160,1748629859580,-500.0,0.0002764,2]
[363227161,1748629859589,-500.0,0.0002764,2]
[363227162,1748629859600,-500.0,0.0002764,2]
[363227163,1748629859611,-753.0,0.0002764,2]
[363227164,1748629859624,-151.0,0.00027644,7]
[363227165,1748629859633,-619.47773,0.0002765,2]
[363227166,1748629859643,-509.40508768,0.00027656,2]
[363227167,1748629859652,-214.6481834,0.00027661,2]
[363227168,1748629859662,-500.0,0.0002767,2]
[363227169,1748629859672,-1400.0,0.00027686,2]
[363227170,1748629859681,-6900.0,0.00027695,2]
[363227171,1748629859690,-500.0,0.00027717,2]
[363227172,1748629859701,-3900.0,0.00027723,2]
[363227173,1748629859710,-810.0,0.00027732,2]
[363227174,1748629859720,-1400.0,0.00027732,2]
[363227175,1748629859729,-500.0,0.00027734,2]
[363227176,1748629859739,-828.70487709,0.00027763,2]
[363227177,1748629859748,-500.0,0.00027771,2]
[363227178,1748629859758,-3900.0,0.00027794,2]
[363227179,1748629859768,-5198.10624477,0.00027797,2]
[363227180,1748629859777,-151.0,0.000278,7]
[363227181,1748629859787,-151.0,0.000278,7]
[363227182,1748629859796,-151.0,0.000278,7]
[363227183,1748629859806,-163.304967,0.000278,7]
[363227184,1748629859815,-163.304967,0.000278,7]
[363227185,1748629859824,-223.608957,0.000278,7]
[363227186,1748629859834,-151.0,0.000278,7]
[363227187,1748629859844,-158.726334,0.000278,7]
[363227188,1748629859853,-4965.365986,0.000278,7]
[363227189,1748629859862,-4965.365986,0.000278,7]
[363227190,1748629859872,-151.0,0.000278,7]
[363227191,1748629859882,-920.37,0.00027808,2]
[363227192,1748629859892,-460.46,0.00027808,2]
[363227193,1748629859901,-460.46,0.00027808,2]
[363227194,1748629859910,-460.46,0.00027808,2]
[363227195,1748629859919,-460.46,0.00027808,2]
[363227196,1748629859930,-916.1,0.00027808,2]
[363227197,1748629859941,-460.46,0.00027808,2]
[363227198,1748629859951,-460.46,0.00027808,2]
[363227199,1748629859961,-850.91,0.00027808,2]
[363227200,1748629859972,-518.9650837,0.00027814,2]
[363227201,1748629859982,-391.0,0.0002783,15]
[363227202,1748629859992,-6900.0,0.0002784,2]
[363227203,1748629860002,-600.0,0.00027853,2]
[363227204,1748629860012,-595.89388217,0.00027864,2]
[363227205,1748629860023,-6073.90825069,0.00027866,17]
[363227206,1748629860033,-1400.0,0.00027868,2]
[363227207,1748629860044,-1400.0,0.00027875,2]
[363227208,1748629860055,-934.48733563,0.0002788,2]
[363227209,1748629860067,-1400.0,0.00027883,2]
[363227210,1748629860078,-736.59439918,0.00027884,2]
[363227211,1748629860089,-2868.29769417,0.00027886,2]
[363227212,1748629860102,-3231.39675069,0.00027914,2]
[363227213,1748629860113,-500.0,0.00027914,2]
[363227214,1748629860124,-500.0,0.00027923,2]
[363227215,1748629860134,-989.09646256,0.00027936,2]
[363227216,1748629860145,-6900.0,0.00027938,2]